{"text_format":"1","workbook":"xlsx","n_sheets":17,"sheets":["Renseignements","Ce que fait le tableau","Prévisionnel","Feuille de présence","Moyennes","Fréquentation globale","Fréquentation TA1","Fréquentation TA2","Fréquentation TA3","Pourcentage S1","Pourcentage S2","Pourcentage S3","Pourcentage S4","Pourcentage S5","Différence","Calculs","Global"],"not_rendered":{"charts":14,"images":4,"macros":1,"external_links":0,"defined_names":2,"comments":0,"pivot_tables":0},"unopened":[{"sheet":"Pourcentage S1","index":9,"reason":"not_a_worksheet"},{"sheet":"Pourcentage S2","index":10,"reason":"not_a_worksheet"},{"sheet":"Pourcentage S3","index":11,"reason":"not_a_worksheet"},{"sheet":"Pourcentage S4","index":12,"reason":"not_a_worksheet"},{"sheet":"Pourcentage S5","index":13,"reason":"not_a_worksheet"}],"bounds":{"document_bytes":16777216,"sheet_cells":100000,"rows_first":2000,"rows_last":500,"rows_between":2000,"halvings":0,"cell_chars":16384,"cell_head_chars":4096},"cells_cut":0,"cells_raw":0,"read":"whole","date_system":"1900"}

{"sheet":"Renseignements","index":0,"n_rows":50,"n_cols":5,"rows_kept":50,"cut":false,"hidden":false,"merged":[[17,0,18,7],[49,0,49,7],[0,0,5,7],[6,0,7,7],[8,0,8,7],[10,1,10,5],[11,1,11,5],[19,0,20,7]]}
["Informations"]
[]
[]
[]
[]
[]
["L'utilisation de ce tableau se veut simple et accessible à tous !\nMerci de nous faire parvenir vos remarques et améliorations éventuelles par courriel"]
[]
["admin@lanimetvous.com"]
[]
["Période :","Vacances d'été (août)"]
["Date du premier jour du séjour :","2016-08-01"]
[]
["Tranches d'âge (TA)"]
["Tranches d'âge 1 (TA1)",4,"-",5,"ans"]
["Tranches d'âge 2 (TA2)",6,"-",11,"ans"]
["Tranches d'âge 3 (TA3)",12,"-",17,"ans"]
["Les dons pour l'association sont les bienvenus"]
[]
["L'association remercie particulièrement la communauté de CCM pour leur précieuse aide technique"]
[]
[]
[]
[]
[]
[]
[]
[]
[]
[]
[]
[]
[]
[]
[]
[]
[]
[]
[]
[]
[]
[]
[]
[]
[]
[]
[]
[]
[]
["Merci à la communauté CCM pour son soutien technique"]

{"sheet":"Ce que fait le tableau","index":1,"n_rows":31,"n_cols":11,"rows_kept":31,"cut":false,"hidden":false,"merged":[[23,2,23,13],[15,3,15,7],[16,3,16,7],[17,3,17,7],[11,9,11,13],[12,10,12,13],[13,10,13,13],[14,10,14,13],[24,0,29,13],[30,0,30,13],[0,0,2,13],[8,2,8,13],[10,0,10,13],[19,0,19,13],[20,2,20,13],[22,0,22,13],[3,0,3,13],[4,2,4,13],[6,0,6,13],[7,2,7,13],[11,2,11,7],[12,3,12,7],[13,3,13,7],[14,3,14,7]]}
["Ce que fait ce tableau :"]
[]
[]
["Tranches d'âge :"]
[null,"·","Renseignez les tranches d'âge de votre structure"]
[]
["Moyennes :"]
[null,"·","Moyenne du nombre d'enfant pour chaque semaine"]
[null,"·","Moyenne du nombre d'enfant pour la totalité du séjour"]
[]
["Fréquentations :"]
[null,"·","Fréquentation globale",null,null,null,null,null,"·","Fréquentation par tranche d'âge"]
[null,null,"·","En demi-journée pour chaque semaine",null,null,null,null,null,"·","En heure"]
[null,null,"·","En demi-journée pour la totalité du séjour",null,null,null,null,null,"·","En journée"]
[null,null,"·","En journée pour chaque semaine",null,null,null,null,null,"·","En demi-journée"]
[null,null,"·","En journée pour la totalité du séjour"]
[null,null,"·","En heure pour chaque semaine"]
[null,null,"·","En heure pour la totalité du séjour"]
[]
["Pourcentages :"]
[null,"·","Fréquentation par semaine par tranche d'âge"]
[]
["Base de donnée :"]
[null,"·","Possibilité d'utilisation d'une base de donnée"]
["        Le fichier comportant les informations doit impérativement s'intituler \"bdd.xlsx\"et se trouver dans le même dossier que celui où se trouve ce fichier ! En l'absence du fichier de base de données, il ne vous sera pas possible d'ajouter d'enfant depuis une base de données. Il reste cependant possible d'utiliser le fichier.\n     Le fichier de base de donnée est livré avec le fichier de pointage. Les deux fichiers doivent se trouver dans le même dossier."]
[]
[]
[]
[]
[]
["plus d'aide à propos de son utilisation…"]

{"sheet":"Prévisionnel","index":2,"n_rows":16,"n_cols":51,"rows_kept":16,"cut":false,"hidden":false,"merged":[[1,0,1,2],[1,3,1,5],[2,0,2,2],[2,3,2,5],[6,6,6,15],[6,26,6,33],[6,34,6,43],[6,44,6,49],[6,50,8,50],[7,0,8,0],[7,1,8,1],[7,2,8,2],[7,3,8,3],[7,4,8,4],[7,5,8,5],[6,16,6,25],[7,28,7,29],[7,6,7,7],[7,8,7,9],[7,10,7,11],[7,12,7,13],[7,14,7,15],[7,16,7,17],[7,18,7,19],[7,20,7,21],[7,22,7,23],[7,24,7,25],[7,26,7,27],[7,42,7,43],[7,44,7,45],[7,46,7,47],[7,48,7,49],[7,30,7,31],[7,32,7,33],[7,34,7,35],[7,36,7,37],[7,38,7,39],[7,40,7,41]]}
[]
["Date du premier jour du séjour :",null,null,"Période :"]
[{"$f":"Renseignements!B12","v":"2016-08-01"},null,null,{"$f":"Renseignements!B11","v":"Vacances d'été (août)"}]
[]
[]
[]
[null,null,null,null,null,null,"Semaine 1",null,null,null,null,null,null,null,null,null,"Semaine 2",null,null,null,null,null,null,null,null,null,"Semaine 3",null,null,null,null,null,null,null,"Semaine 4",null,null,null,null,null,null,null,null,null,"Semaine 5",null,null,null,null,null,"TOT"]
["NOM","Prénom","Date de naissance","Régime","Âge","Tranche d'âge",1,null,2,null,3,null,4,null,5,null,8,null,9,null,10,null,11,null,12,null,16,null,17,null,18,null,19,null,22,null,23,null,24,null,25,null,26,null,29,null,30,null,31]
[null,null,null,null,null,null,"m","am","m","am","m","am","m","am","m","am","m","am","m","am","m","am","m","am","m","am","m","am","m","am","m","am","m","am","m","am","m","am","m","am","m","am","m","am","m","am","m","am","m","am"]
[null,null,null,null,{"$f":"IF(C10<>\"\",DATEDIF(C10,$A$3,\"y\"),\"\")","v":""},{"$f":"IF(C10=\"\",\"\",IF(E10<Renseignements!$B$15,\"Autres\",IF(E10<Renseignements!$B$16,Renseignements!$B$15&\" \"&Renseignements!$C$15&\" \"&Renseignements!$D$15&\" \"&Renseignements!$E$15,IF(E10<Renseignements!$B$17,Renseignements!$B$16&\" \"&Renseignements!$C$16&\" \"&Renseignements!$D$16&\" \"&Renseignements!$E$16,IF(E10<=Renseignements!$D$17,Renseignements!$B$17&\" \"&Renseignements!$C$17&\" \"&Renseignements!$D$17&\" \"&Renseignements!$E$17,\"Autres\")))))","v":""},null,null,null,null,null,null,null,null,null,null,null,null,null,null,null,null,null,null,null,null,null,null,null,null,null,null,null,null,null,null,null,null,null,null,null,null,null,null,null,null,null,null,null,null,{"$f":"COUNTA(G10:AX10)","v":0}]
[null,null,null,null,{"$f":"IF(C11<>\"\",DATEDIF(C11,$A$3,\"y\"),\"\")","v":""},{"$f":"IF(C11=\"\",\"\",IF(E11<Renseignements!$B$15,\"Autres\",IF(E11<Renseignements!$B$16,Renseignements!$B$15&\" \"&Renseignements!$C$15&\" \"&Renseignements!$D$15&\" \"&Renseignements!$E$15,IF(E11<Renseignements!$B$17,Renseignements!$B$16&\" \"&Renseignements!$C$16&\" \"&Renseignements!$D$16&\" \"&Renseignements!$E$16,IF(E11<=Renseignements!$D$17,Renseignements!$B$17&\" \"&Renseignements!$C$17&\" \"&Renseignements!$D$17&\" \"&Renseignements!$E$17,\"Autres\")))))","v":""},null,null,null,null,null,null,null,null,null,null,null,null,null,null,null,null,null,null,null,null,null,null,null,null,null,null,null,null,null,null,null,null,null,null,null,null,null,null,null,null,null,null,null,null,{"$f":"COUNTA(G11:AX11)","v":0}]
[null,null,null,null,"Total",{"$f":"SUM(F13:F16)","v":0},{"$f":"SUM(G13:G16)","v":0},{"$f":"SUM(H13:H16)","v":0},0,0,0,0,0,0,0,0,0,0,0,0,0,0,0,0,0,0,0,0,0,0,0,0,0,0,0,0,0,0,0,0,0,0,0,0,0,0,0,0,0,0]
[null,null,null,null,{"$f":"Renseignements!$B$15&\" \"&Renseignements!$C$15&\" \"&Renseignements!$D$15&\" \"&Renseignements!$E$15","v":"4 - 5 ans"},{"$f":"COUNTIF(F$9:F$11,$E13)","v":0},{"$f":"SUMPRODUCT(($F$9:$F$11=$E13)*(G$9:G$11=\"x\"))","v":0},0,0,0,0,0,0,0,0,0,{"$f":"SUMPRODUCT(($F$9:$F$11=$E13)*(Q$9:Q$11=\"x\"))","v":0},0,0,0,0,0,0,0,0,0,{"$f":"SUMPRODUCT(($F$9:$F$11=$E13)*(AA$9:AA$11=\"x\"))","v":0},0,0,0,0,0,0,0,0,0,{"$f":"SUMPRODUCT(($F$9:$F$11=$E13)*(AK$9:AK$11=\"x\"))","v":0},0,0,0,0,0,0,0,0,0,0,0,0,0]
[null,null,null,null,{"$f":"Renseignements!$B$16&\" \"&Renseignements!$C$16&\" \"&Renseignements!$D$16&\" \"&Renseignements!$E$16","v":"6 - 11 ans"},{"$f":"COUNTIF(F$9:F$11,$E14)","v":0},0,0,0,0,0,0,0,0,0,0,0,0,0,0,0,0,0,0,0,0,0,0,0,0,0,0,0,0,0,0,0,0,0,0,0,0,0,0,0,0,0,0,0,0]
[null,null,null,null,{"$f":"Renseignements!$B$17&\" \"&Renseignements!$C$17&\" \"&Renseignements!$D$17&\" \"&Renseignements!$E$17","v":"12 - 17 ans"},{"$f":"COUNTIF(F$9:F$11,$E15)","v":0},0,0,0,0,0,0,0,0,0,0,0,0,0,0,0,0,0,0,0,0,0,0,0,0,0,0,0,0,0,0,0,0,0,0,0,0,0,0,0,0,0,0,0,0]
[null,null,null,null,"Autres",{"$f":"COUNTIF(F$9:F$11,$E16)","v":0},0,0,0,0,0,0,0,0,0,0,0,0,0,0,0,0,0,0,0,0,0,0,0,0,0,0,0,0,0,0,0,0,0,0,0,0,0,0,0,0,0,0,0,0]

{"sheet":"Feuille de présence","index":3,"n_rows":15,"n_cols":51,"rows_kept":15,"cut":false,"hidden":false,"merged":[[7,46,7,47],[6,44,6,49],[6,16,6,25],[7,40,7,41],[7,6,7,7],[7,8,7,9],[7,10,7,11],[7,16,7,17],[7,18,7,19],[6,26,6,33],[6,34,6,43],[7,44,7,45],[6,50,8,50],[7,12,7,13],[7,14,7,15],[7,20,7,21],[7,22,7,23],[7,24,7,25],[7,26,7,27],[7,28,7,29],[7,30,7,31],[7,42,7,43],[7,48,7,49],[7,32,7,33],[7,34,7,35],[7,36,7,37],[7,38,7,39],[6,6,6,15],[7,3,8,3],[1,0,1,2],[2,0,2,2],[7,0,8,0],[7,1,8,1],[7,2,8,2],[2,3,2,5],[1,3,1,5],[7,4,8,4],[7,5,8,5]]}
[]
["Date du premier jour du séjour :",null,null,"Période :"]
[{"$f":"Renseignements!B12","v":"2016-08-01"},null,null,{"$f":"Renseignements!B11","v":"Vacances d'été (août)"}]
[]
[]
[]
[null,null,null,null,null,null,"Semaine 1",null,null,null,null,null,null,null,null,null,"Semaine 2",null,null,null,null,null,null,null,null,null,"Semaine 3",null,null,null,null,null,null,null,"Semaine 4",null,null,null,null,null,null,null,null,null,"Semaine 5",null,null,null,null,null,"TOT"]
["NOM","Prénom","Date de naissance","Régime","Âge","Tranche d'âge",1,null,2,null,3,null,4,null,5,null,8,null,9,null,10,null,11,null,12,null,16,null,17,null,18,null,19,null,22,null,23,null,24,null,25,null,26,null,29,null,30,null,31]
[null,null,null,null,null,null,"m","am","m","am","m","am","m","am","m","am","m","am","m","am","m","am","m","am","m","am","m","am","m","am","m","am","m","am","m","am","m","am","m","am","m","am","m","am","m","am","m","am","m","am"]
[null,null,null,null,{"$f":"IF(C10<>\"\",DATEDIF(C10,$A$3,\"y\"),\"\")","v":""},{"$f":"IF(C10=\"\",\"\",IF(E10<Renseignements!$B$15,\"Autres\",IF(E10<Renseignements!$B$16,Renseignements!$B$15&\" \"&Renseignements!$C$15&\" \"&Renseignements!$D$15&\" \"&Renseignements!$E$15,IF(E10<Renseignements!$B$17,Renseignements!$B$16&\" \"&Renseignements!$C$16&\" \"&Renseignements!$D$16&\" \"&Renseignements!$E$16,IF(E10<=Renseignements!$D$17,Renseignements!$B$17&\" \"&Renseignements!$C$17&\" \"&Renseignements!$D$17&\" \"&Renseignements!$E$17,\"Autres\")))))","v":""},null,null,null,null,null,null,null,null,null,null,null,null,null,null,null,null,null,null,null,null,null,null,null,null,null,null,null,null,null,null,null,null,null,null,null,null,null,null,null,null,null,null,null,null,{"$f":"COUNTA(G10:AX10)","v":0}]
[null,null,null,null,"Total",{"$f":"SUM(F12:F15)","v":0},{"$f":"SUM(G12:G15)","v":0},{"$f":"SUM(H12:H15)","v":0},0,0,0,0,0,0,0,0,0,0,0,0,0,0,0,0,0,0,0,0,0,0,0,0,0,0,0,0,0,0,0,0,0,0,0,0,{"$f":"SUM(AS12:AS15)","v":0},0,0,0,0,0]
[null,null,null,null,{"$f":"Renseignements!$B$15&\" \"&Renseignements!$C$15&\" \"&Renseignements!$D$15&\" \"&Renseignements!$E$15","v":"4 - 5 ans"},{"$f":"COUNTIF(F$9:F$10,$E12)","v":0},{"$f":"SUMPRODUCT(($F$9:$F$10=$E12)*(G$9:G$10=\"x\"))","v":0},0,0,0,0,0,0,0,0,0,{"$f":"SUMPRODUCT(($F$9:$F$10=$E12)*(Q$9:Q$10=\"x\"))","v":0},0,0,0,0,0,0,0,0,0,{"$f":"SUMPRODUCT(($F$9:$F$10=$E12)*(AA$9:AA$10=\"x\"))","v":0},0,0,0,0,0,0,0,0,0,{"$f":"SUMPRODUCT(($F$9:$F$10=$E12)*(AK$9:AK$10=\"x\"))","v":0},0,0,0,0,0,0,0,0,0,0,0,0,0]
[null,null,null,null,{"$f":"Renseignements!$B$16&\" \"&Renseignements!$C$16&\" \"&Renseignements!$D$16&\" \"&Renseignements!$E$16","v":"6 - 11 ans"},{"$f":"COUNTIF(F$9:F$10,$E13)","v":0},0,0,0,0,0,0,0,0,0,0,0,0,0,0,0,0,0,0,0,0,0,0,0,0,0,0,0,0,0,0,0,0,0,0,0,0,0,0,0,0,0,0,0,0]
[null,null,null,null,{"$f":"Renseignements!$B$17&\" \"&Renseignements!$C$17&\" \"&Renseignements!$D$17&\" \"&Renseignements!$E$17","v":"12 - 17 ans"},{"$f":"COUNTIF(F$9:F$10,$E14)","v":0},0,0,0,0,0,0,0,0,0,0,0,0,0,0,0,0,0,0,0,0,0,0,0,0,0,0,0,0,0,0,0,0,0,0,0,0,0,0,0,0,0,0,0,0]
[null,null,null,null,"Autres",{"$f":"COUNTIF(F$9:F$10,$E15)","v":0},0,0,0,0,0,0,0,0,0,0,0,0,0,0,0,0,0,0,0,0,0,0,0,0,0,0,0,0,0,0,0,0,0,0,0,0,0,0,0,0,0,0,0,0]

{"sheet":"Moyennes","index":4,"n_rows":19,"n_cols":3,"rows_kept":19,"cut":false,"hidden":false,"merged":[[1,0,1,3],[2,0,2,3],[4,0,7,7],[18,1,19,1],[18,0,19,0],[17,0,17,7],[18,2,19,7],[9,0,9,7],[10,2,10,7],[11,2,11,7],[12,2,12,7],[13,2,13,7],[15,2,15,7],[14,2,14,7]]}
[]
["Période :"]
[{"$f":"Renseignements!B11","v":"Vacances d'été (août)"}]
[]
["Les feuilles suivantes sont en lecture seule. \nAucune modification ne doit y être apportée. \nLes calculs se font automatiquements."]
[]
[]
[]
[]
["Moyennes :"]
["Semaine 1",{"$f":"AVERAGE('Feuille de présence'!G11:P11)","v":0},"enfant(s) de moyenne par demi journée pour cette semaine"]
["Semaine 2",{"$f":"AVERAGE('Feuille de présence'!Q11:Z11)","v":0},"enfant(s) de moyenne par demi journée pour cette semaine"]
["Semaine 3",{"$f":"AVERAGE('Feuille de présence'!AA11:AH11)","v":0},"enfant(s) de moyenne par demi journée pour cette semaine"]
["Semaine 4",{"$f":"AVERAGE('Feuille de présence'!AI11:AR11)","v":0},"enfant(s) de moyenne par demi journée pour cette semaine"]
["Semaine 5",{"$f":"AVERAGE('Feuille de présence'!AS11:AX11)","v":0},"enfant(s) de moyenne par demi journée pour cette semaine"]
["Globale",{"$f":"AVERAGE('Feuille de présence'!G11:AX11)","v":0},"enfant(s) de moyenne par demi journée pour les cinq semaines"]
[]
["Inscrits"]
["Globale",{"$f":"SUM('Feuille de présence'!F11)","v":0},"inscrit(s) sur cette période"]

{"sheet":"Fréquentation globale","index":5,"n_rows":27,"n_cols":3,"rows_kept":27,"cut":false,"hidden":false,"merged":[[5,2,5,7],[9,2,9,7],[17,2,17,7],[6,2,6,7],[7,2,7,7],[8,2,8,7],[10,2,10,7],[1,0,1,3],[2,0,2,3],[23,2,23,7],[24,2,24,7],[26,2,26,7],[14,2,14,7],[15,2,15,7],[16,2,16,7],[18,2,18,7],[21,2,21,7],[20,0,20,7],[25,2,25,7],[13,2,13,7],[22,2,22,7],[12,0,12,7],[4,0,4,7]]}
[]
["Période :"]
[{"$f":"Renseignements!B11","v":"Vacances d'été (août)"}]
[]
["Fréquentation :\n(en demi-journée)"]
["Semaine 1",{"$f":"SUM('Feuille de présence'!G11:P11)","v":0},"demi journée de fréquentation pour cette semaine"]
["Semaine 2",{"$f":"SUM('Feuille de présence'!Q11:Z11)","v":0},"demi journée de fréquentation pour cette semaine"]
["Semaine 3",{"$f":"SUM('Feuille de présence'!AA11:AH11)","v":0},"demi journée de fréquentation pour cette semaine"]
["Semaine 4",{"$f":"SUM('Feuille de présence'!AI11:AR11)","v":0},"demi journée de fréquentation pour cette semaine"]
["Semaine 5",{"$f":"SUM('Feuille de présence'!AS11:AX11)","v":0},"demi journée de fréquentation pour cette semaine"]
["Globale",{"$f":"SUM(B6:B9)","v":0},"demi journées de fréquentation pour les cinq semaines"]
[]
["Fréquentation :\n(en jours)"]
[{"$f":"A6","v":"Semaine 1"},{"$f":"B6/2","v":0},"journée(s) de fréquentation pour cette semaine"]
[{"$f":"A7","v":"Semaine 2"},{"$f":"B7/2","v":0},"journée(s) de fréquentation pour cette semaine"]
[{"$f":"A8","v":"Semaine 3"},{"$f":"B8/2","v":0},"journée(s) de fréquentation pour cette semaine"]
[{"$f":"A9","v":"Semaine 4"},{"$f":"B9/2","v":0},"journée(s) de fréquentation pour cette semaine"]
[{"$f":"A10","v":"Semaine 5"},{"$f":"B10/2","v":0},"journée(s) de fréquentation pour cette semaine"]
["Globale",{"$f":"SUM(B14:B17)","v":0},"journée(s) de fréquentation pour les cinq semaines"]
[]
["Fréquentation :\n(en heures)"]
[{"$f":"A6","v":"Semaine 1"},{"$f":"B14*8","v":0},"heure(s) de fréquentation pour cette semaine"]
[{"$f":"A7","v":"Semaine 2"},{"$f":"B15*8","v":0},"heure(s) de fréquentation pour cette semaine"]
[{"$f":"A8","v":"Semaine 3"},{"$f":"B16*8","v":0},"heure(s) de fréquentation pour cette semaine"]
[{"$f":"A9","v":"Semaine 4"},{"$f":"B17*8","v":0},"heure(s) de fréquentation pour cette semaine"]
[{"$f":"A10","v":"Semaine 5"},{"$f":"B18*8","v":0},"heure(s) de fréquentation pour cette semaine"]
["Globale",{"$f":"SUM(B22:B25)","v":0},"heure(s) de fréquentation pour les cinq semaines"]

{"sheet":"Fréquentation TA1","index":6,"n_rows":30,"n_cols":3,"rows_kept":30,"cut":false,"hidden":false,"merged":[[8,2,8,5],[9,2,9,5],[11,2,11,5],[1,0,1,3],[2,0,2,3],[4,0,4,5],[6,2,6,5],[7,2,7,5],[5,0,5,5],[10,2,10,5],[27,2,27,5],[29,2,29,5],[13,0,13,5],[15,2,15,5],[16,2,16,5],[17,2,17,5],[18,2,18,5],[20,2,20,5],[22,0,22,5],[24,2,24,5],[25,2,25,5],[26,2,26,5],[14,0,14,5],[23,0,23,5],[19,2,19,5],[28,2,28,5]]}
[]
["Période :"]
[{"$f":"Renseignements!B11","v":"Vacances d'été (août)"}]
[]
["Fréquentation :"]
[{"$f":"Renseignements!$B$15&\" \"&Renseignements!$C$15&\" \"&Renseignements!$D$15&\" \"&Renseignements!$E$15","v":"4 - 5 ans"}]
["Semaine 1",{"$f":"SUM('Feuille de présence'!G12:P12)*4","v":0},"heure(s) de fréquentation pour cette semaine"]
["Semaine 2",{"$f":"SUM('Feuille de présence'!Q12:Z12)*4","v":0},"heure(s) de fréquentation pour cette semaine"]
["Semaine 3",{"$f":"SUM('Feuille de présence'!AA12:AH12)*4","v":0},"heure(s) de fréquentation pour cette semaine"]
["Semaine 4",{"$f":"SUM('Feuille de présence'!AI12:AR12)*4","v":0},"heure(s) de fréquentation pour cette semaine"]
["Semaine 5",{"$f":"SUM('Feuille de présence'!AS12:AX12)*4","v":0},"heure(s) de fréquentation pour cette semaine"]
["Globale",{"$f":"SUM(B7:B11)","v":0},"heure(s) de fréquentation pour les cinq semaines pour cette tranche d'âge"]
[]
["Fréquentation :"]
[{"$f":"Renseignements!$B$15&\" \"&Renseignements!$C$15&\" \"&Renseignements!$D$15&\" \"&Renseignements!$E$15","v":"4 - 5 ans"}]
[{"$f":"A7","v":"Semaine 1"},{"$f":"SUM('Feuille de présence'!G12:P12)/2","v":0},"journée(s) de fréquentation pour cette semaine"]
[{"$f":"A8","v":"Semaine 2"},{"$f":"SUM('Feuille de présence'!Q12:Z12)/2","v":0},"journée(s) de fréquentation pour cette semaine"]
[{"$f":"A9","v":"Semaine 3"},{"$f":"SUM('Feuille de présence'!AA12:AH12)/2","v":0},"journée(s) de fréquentation pour cette semaine"]
[{"$f":"A10","v":"Semaine 4"},{"$f":"SUM('Feuille de présence'!AI12:AR12)/2","v":0},"journée(s) de fréquentation pour cette semaine"]
[{"$f":"A11","v":"Semaine 5"},{"$f":"SUM('Feuille de présence'!AS12:AX12)/2","v":0},"journée(s) de fréquentation pour cette semaine"]
["Globale",{"$f":"SUM(B16:B20)","v":0},"journée(s) de fréquentation pour les cinq semaines"]
[]
["Fréquentation :"]
[{"$f":"Renseignements!$B$15&\" \"&Renseignements!$C$15&\" \"&Renseignements!$D$15&\" \"&Renseignements!$E$15","v":"4 - 5 ans"}]
[{"$f":"A7","v":"Semaine 1"},{"$f":"SUM('Feuille de présence'!G12:P12)","v":0},"demi journée de fréquentation pour cette semaine"]
[{"$f":"A8","v":"Semaine 2"},{"$f":"SUM('Feuille de présence'!Q12:Z12)","v":0},"demi journée de fréquentation pour cette semaine"]
[{"$f":"A9","v":"Semaine 3"},{"$f":"SUM('Feuille de présence'!AA12:AH12)","v":0},"demi journée de fréquentation pour cette semaine"]
[{"$f":"A10","v":"Semaine 4"},{"$f":"SUM('Feuille de présence'!AI12:AR12)","v":0},"demi journée de fréquentation pour cette semaine"]
[{"$f":"A11","v":"Semaine 5"},{"$f":"SUM('Feuille de présence'!AS12:AX12)","v":0},"demi journée de fréquentation pour cette semaine"]
["Globale",{"$f":"SUM(B25:B29)","v":0},"demi journées de fréquentation pour les quatre semaines"]

{"sheet":"Fréquentation TA2","index":7,"n_rows":30,"n_cols":3,"rows_kept":30,"cut":false,"hidden":false,"merged":[[11,2,11,5],[1,0,1,3],[2,0,2,3],[4,0,4,5],[5,0,5,5],[6,2,6,5],[7,2,7,5],[8,2,8,5],[9,2,9,5],[10,2,10,5],[13,0,13,5],[14,0,14,5],[15,2,15,5],[16,2,16,5],[17,2,17,5],[26,2,26,5],[27,2,27,5],[28,2,28,5],[29,2,29,5],[18,2,18,5],[19,2,19,5],[20,2,20,5],[25,2,25,5],[22,0,22,5],[23,0,23,5],[24,2,24,5]]}
[]
["Période :"]
[{"$f":"Renseignements!B11","v":"Vacances d'été (août)"}]
[]
["Fréquentation : "]
[{"$f":"Renseignements!$B$16&\" \"&Renseignements!$C$16&\" \"&Renseignements!$D$16&\" \"&Renseignements!$E$16","v":"6 - 11 ans"}]
["Semaine 1",{"$f":"SUM('Feuille de présence'!G13:P13)*4","v":0},"heure(s) de fréquentation pour cette semaine"]
["Semaine 2",{"$f":"SUM('Feuille de présence'!Q13:Z13)*4","v":0},"heure(s) de fréquentation pour cette semaine"]
["Semaine 3",{"$f":"SUM('Feuille de présence'!AA13:AH13)*4","v":0},"heure(s) de fréquentation pour cette semaine"]
["Semaine 4",{"$f":"SUM('Feuille de présence'!AI13:AR13)*4","v":0},"heure(s) de fréquentation pour cette semaine"]
["Semaine 5",{"$f":"SUM('Feuille de présence'!AS13:AX13)*4","v":0},"heure(s) de fréquentation pour cette semaine"]
["Globale",{"$f":"SUM(B7:B11)","v":0},"heure(s) de fréquentation pour les cinq semaines pour cette tranche d'âge"]
[]
["Fréquentation :\n(6-11 ans)"]
[{"$f":"Renseignements!$B$16&\" \"&Renseignements!$C$16&\" \"&Renseignements!$D$16&\" \"&Renseignements!$E$16","v":"6 - 11 ans"}]
[{"$f":"A7","v":"Semaine 1"},{"$f":"SUM('Feuille de présence'!G13:P13)/2","v":0},"journée(s) de fréquentation pour cette semaine"]
[{"$f":"A8","v":"Semaine 2"},{"$f":"SUM('Feuille de présence'!Q13:Z13)/2","v":0},"journée(s) de fréquentation pour cette semaine"]
[{"$f":"A9","v":"Semaine 3"},{"$f":"SUM('Feuille de présence'!AA13:AH13)/2","v":0},"journée(s) de fréquentation pour cette semaine"]
[{"$f":"A10","v":"Semaine 4"},{"$f":"SUM('Feuille de présence'!AI13:AR13)/2","v":0},"journée(s) de fréquentation pour cette semaine"]
[{"$f":"A11","v":"Semaine 5"},{"$f":"SUM('Feuille de présence'!AS13:AX13)/2","v":0},"journée(s) de fréquentation pour cette semaine"]
["Globale",{"$f":"SUM(B16:B20)","v":0},"journée(s) de fréquentation pour les cinq semaines"]
[]
["Fréquentation :\n(6-11 ans)"]
[{"$f":"Renseignements!$B$16&\" \"&Renseignements!$C$16&\" \"&Renseignements!$D$16&\" \"&Renseignements!$E$16","v":"6 - 11 ans"}]
[{"$f":"A16","v":"Semaine 1"},{"$f":"SUM('Feuille de présence'!G13:P13)","v":0},"journée(s) de fréquentation pour cette semaine"]
[{"$f":"A17","v":"Semaine 2"},{"$f":"SUM('Feuille de présence'!Q13:Z13)","v":0},"journée(s) de fréquentation pour cette semaine"]
[{"$f":"A18","v":"Semaine 3"},{"$f":"SUM('Feuille de présence'!AA13:AH13)","v":0},"journée(s) de fréquentation pour cette semaine"]
[{"$f":"A19","v":"Semaine 4"},{"$f":"SUM('Feuille de présence'!AI13:AR13)","v":0},"journée(s) de fréquentation pour cette semaine"]
[{"$f":"A20","v":"Semaine 5"},{"$f":"SUM('Feuille de présence'!AS13:AX13)","v":0},"journée(s) de fréquentation pour cette semaine"]
["Globale",{"$f":"SUM(B25:B29)","v":0},"journée(s) de fréquentation pour les cinq semaines"]

{"sheet":"Fréquentation TA3","index":8,"n_rows":30,"n_cols":3,"rows_kept":30,"cut":false,"hidden":false,"merged":[[26,2,26,5],[27,2,27,5],[28,2,28,5],[29,2,29,5],[11,2,11,5],[15,2,15,5],[16,2,16,5],[17,2,17,5],[18,2,18,5],[13,0,13,5],[24,2,24,5],[25,2,25,5],[22,0,22,5],[14,0,14,5],[23,0,23,5],[19,2,19,5],[20,2,20,5],[8,2,8,5],[9,2,9,5],[10,2,10,5],[1,0,1,3],[2,0,2,3],[4,0,4,5],[6,2,6,5],[7,2,7,5],[5,0,5,5]]}
[]
["Période :"]
[{"$f":"Renseignements!B11","v":"Vacances d'été (août)"}]
[]
["Fréquentation :"]
[{"$f":"Renseignements!$B$17&\" \"&Renseignements!$C$17&\" \"&Renseignements!$D$17&\" \"&Renseignements!$E$17","v":"12 - 17 ans"}]
["Semaine 1",{"$f":"SUM('Feuille de présence'!G14:P14)*4","v":0},"heure(s) de fréquentation pour cette semaine"]
["Semaine 2",{"$f":"SUM('Feuille de présence'!Q14:Z14)*4","v":0},"heure(s) de fréquentation pour cette semaine"]
["Semaine 3",{"$f":"SUM('Feuille de présence'!AA14:AH14)*4","v":0},"heure(s) de fréquentation pour cette semaine"]
["Semaine 4",{"$f":"SUM('Feuille de présence'!AI14:AR14)*4","v":0},"heure(s) de fréquentation pour cette semaine"]
["Semaine 5",{"$f":"SUM('Feuille de présence'!AS14:AX14)*4","v":0},"heure(s) de fréquentation pour cette semaine"]
["Globale",{"$f":"SUM(B7:B11)","v":0},"heure(s) de fréquentation pour les cinq semaines pour cette tranche d'âge"]
[]
["Fréquentation :"]
[{"$f":"Renseignements!$B$17&\" \"&Renseignements!$C$17&\" \"&Renseignements!$D$17&\" \"&Renseignements!$E$17","v":"12 - 17 ans"}]
[{"$f":"A7","v":"Semaine 1"},{"$f":"SUM('Feuille de présence'!G14:P14)/2","v":0},"journée(s) de fréquentation pour cette semaine"]
[{"$f":"A8","v":"Semaine 2"},{"$f":"SUM('Feuille de présence'!Q14:Z14)/2","v":0},"journée(s) de fréquentation pour cette semaine"]
[{"$f":"A9","v":"Semaine 3"},{"$f":"SUM('Feuille de présence'!AA14:AH14)/2","v":0},"journée(s) de fréquentation pour cette semaine"]
[{"$f":"A10","v":"Semaine 4"},{"$f":"SUM('Feuille de présence'!AI14:AR14)/2","v":0},"journée(s) de fréquentation pour cette semaine"]
[{"$f":"A11","v":"Semaine 5"},{"$f":"SUM('Feuille de présence'!AS14:AX14)/2","v":0},"journée(s) de fréquentation pour cette semaine"]
["Globale",{"$f":"SUM(B16:B20)","v":0},"journée(s) de fréquentation pour les cinq semaines"]
[]
["Fréquentation :"]
[{"$f":"Renseignements!$B$17&\" \"&Renseignements!$C$17&\" \"&Renseignements!$D$17&\" \"&Renseignements!$E$17","v":"12 - 17 ans"}]
[{"$f":"A16","v":"Semaine 1"},{"$f":"SUM('Feuille de présence'!G14:P14)","v":0},"journée(s) de fréquentation pour cette semaine"]
[{"$f":"A17","v":"Semaine 2"},{"$f":"SUM('Feuille de présence'!Q14:Z14)","v":0},"journée(s) de fréquentation pour cette semaine"]
[{"$f":"A18","v":"Semaine 3"},{"$f":"SUM('Feuille de présence'!AA14:AH14)","v":0},"journée(s) de fréquentation pour cette semaine"]
[{"$f":"A19","v":"Semaine 4"},{"$f":"SUM('Feuille de présence'!AI14:AR14)","v":0},"journée(s) de fréquentation pour cette semaine"]
[{"$f":"A20","v":"Semaine 5"},{"$f":"SUM('Feuille de présence'!AS14:AX14)","v":0},"journée(s) de fréquentation pour cette semaine"]
["Globale",{"$f":"SUM(B25:B29)","v":0},"journée(s) de fréquentation pour les cinq semaines"]

{"sheet":"Différence","index":14,"n_rows":58,"n_cols":3,"rows_kept":58,"cut":false,"hidden":false,"merged":[[10,0,11,6],[12,0,13,0],[14,0,15,0],[16,0,17,0],[18,0,19,0],[20,0,21,0],[44,0,45,0],[22,0,23,0],[24,0,25,0],[26,0,27,0],[28,0,29,0],[30,0,31,0],[32,0,33,0],[34,0,35,0],[36,0,37,0],[38,0,39,0],[40,0,41,0],[42,0,43,0],[68,0,69,0],[46,0,47,0],[48,0,49,0],[50,0,51,0],[52,0,53,0],[54,0,55,0],[56,0,57,0],[58,0,59,0],[60,0,61,0],[62,0,63,0],[64,0,65,0],[66,0,67,0],[82,0,83,0],[70,0,71,0],[72,0,73,0],[74,0,75,0],[76,0,77,0],[78,0,79,0],[80,0,81,0]]}
[]
[]
[]
[]
[]
[]
[]
[]
[]
[]
["Global"]
[]
["2016-08-01","m",{"$f":"Prévisionnel!G$12","v":0}]
[null,"am",{"$f":"Prévisionnel!H$12","v":0}]
["2016-08-02","m",{"$f":"Prévisionnel!I$12","v":0}]
[null,"am",{"$f":"Prévisionnel!J$12","v":0}]
["2016-08-03","m",{"$f":"Prévisionnel!K$12","v":0}]
[null,"am",{"$f":"Prévisionnel!L$12","v":0}]
["2016-08-04","m",{"$f":"Prévisionnel!M$12","v":0}]
[null,"am",{"$f":"Prévisionnel!N$12","v":0}]
["2016-08-05","m",{"$f":"Prévisionnel!O$12","v":0}]
[null,"am",{"$f":"Prévisionnel!P$12","v":0}]
["2016-08-08","m",{"$f":"Prévisionnel!Q$12","v":0}]
[null,"am",{"$f":"Prévisionnel!R$12","v":0}]
["2016-08-09","m",{"$f":"Prévisionnel!S$12","v":0}]
[null,"am",{"$f":"Prévisionnel!T$12","v":0}]
["2016-08-10","m",{"$f":"Prévisionnel!U$12","v":0}]
[null,"am",{"$f":"Prévisionnel!V$12","v":0}]
["2016-08-11","m",{"$f":"Prévisionnel!W$12","v":0}]
[null,"am",{"$f":"Prévisionnel!X$12","v":0}]
["2016-08-12","m",{"$f":"Prévisionnel!Y$12","v":0}]
[null,"am",{"$f":"Prévisionnel!Z$12","v":0}]
["2016-08-15","m"]
[null,"am"]
["2016-08-16","m"]
[null,"am"]
["2016-08-17","m"]
[null,"am"]
["2016-08-18","m"]
[null,"am"]
["2016-08-19","m"]
[null,"am"]
["2016-08-22","m"]
[null,"am"]
["2016-08-23","m"]
[null,"am"]
["2016-08-24","m"]
[null,"am"]
["2016-08-25","m"]
[null,"am"]
["2016-08-26","m"]
[null,"am"]
["2016-08-29","m"]
[null,"am"]
["2016-08-30","m"]
[null,"am"]
["2016-08-31","m"]
[null,"am"]

{"sheet":"Calculs","index":15,"n_rows":9,"n_cols":7,"rows_kept":9,"cut":false,"hidden":true,"merged":[[6,6,8,8],[1,6,3,8],[5,1,5,5],[6,1,6,5],[7,1,7,5],[8,1,8,5]]}
[null,"Semaine 1","Semaine 2","Semaine 3","Semaine 4","Semaine 5"]
[{"$f":"Renseignements!$B$15&\" \"&Renseignements!$C$15&\" \"&Renseignements!$D$15&\" \"&Renseignements!$E$15","v":"4 - 5 ans"},{"$f":"SUM('Feuille de présence'!G12:P12)","v":0},{"$f":"SUM('Feuille de présence'!Q12:Z12)","v":0},{"$f":"SUM('Feuille de présence'!AA12:AH12)","v":0},{"$f":"SUM('Feuille de présence'!AI12:AR12)","v":0},{"$f":"SUM('Feuille de présence'!AS12:AX12)","v":0},"demi-journée(s)"]
[{"$f":"Renseignements!$B$16&\" \"&Renseignements!$C$16&\" \"&Renseignements!$D$16&\" \"&Renseignements!$E$16","v":"6 - 11 ans"},{"$f":"SUM('Feuille de présence'!G13:P13)","v":0},{"$f":"SUM('Feuille de présence'!Q13:Z13)","v":0},{"$f":"SUM('Feuille de présence'!AA13:AH13)","v":0},{"$f":"SUM('Feuille de présence'!AI13:AR13)","v":0},{"$f":"SUM('Feuille de présence'!AS13:AX13)","v":0}]
[{"$f":"Renseignements!$B$17&\" \"&Renseignements!$C$17&\" \"&Renseignements!$D$17&\" \"&Renseignements!$E$17","v":"12 - 17 ans"},{"$f":"SUM('Feuille de présence'!G14:P14)","v":0},{"$f":"SUM('Feuille de présence'!Q14:Z14)","v":0},{"$f":"SUM('Feuille de présence'!AA14:AH14)","v":0},{"$f":"SUM('Feuille de présence'!AI14:AR14)","v":0},{"$f":"SUM('Feuille de présence'!AS14:AX14)","v":0}]
[]
[null,"Sur les quatre semaines"]
[{"$f":"Renseignements!$B$15&\" \"&Renseignements!$C$15&\" \"&Renseignements!$D$15&\" \"&Renseignements!$E$15","v":"4 - 5 ans"},{"$f":"SUM(B2:F2)","v":0},null,null,null,null,"demi-journée(s)"]
[{"$f":"Renseignements!$B$16&\" \"&Renseignements!$C$16&\" \"&Renseignements!$D$16&\" \"&Renseignements!$E$16","v":"6 - 11 ans"},{"$f":"SUM(B3:F3)","v":0}]
[{"$f":"Renseignements!$B$17&\" \"&Renseignements!$C$17&\" \"&Renseignements!$D$17&\" \"&Renseignements!$E$17","v":"12 - 17 ans"},{"$f":"SUM(B4:F4)","v":0}]

{"sheet":"Global","index":16,"n_rows":0,"n_cols":0,"rows_kept":0,"cut":false,"hidden":false,"merged":[]}